bitfinex-derivatives/quotes_ETHF0:USTF0_20251028
["timestamp","ask_amount","ask_price","bid_price","bid_amount"]
[1761609602300,0.4485,4121.7,4120.7,0.00268267]
[1761609602699,3.9959,4120.8,4120.7,0.00268267]
[1761609602998,0.3396,4119.2,4119.1,3.2078]
[1761609603201,0.7881,4119.2,4119.1,3.2078]
[1761609603799,0.79112704,4119.2,4119.1,3.21078218]
[1761609604901,0.79112704,4119.2,4119.1,0.00298218]
[1761609605394,0.79112704,4119.2,4119.1,0.53418218]
[1761609605595,0.79112704,4119.2,4119.1,0.00298218]
[1761609607102,0.79112704,4119.2,4119.1,0.22848218]
[1761609607299,0.79112704,4119.2,4119.1,0.79908218]
[1761609607495,0.79112704,4119.2,4119.1,0.00298218]
[1761609609299,0.9696,4118.1,4118.0,4.0039]
[1761609609600,1.1872,4118.1,4118.0,4.0039]
[1761609609793,1.1872,4118.1,4118.0,3.4333]
[1761609610303,1.1872,4118.1,4118.0,3.43583047]
[1761609610498,1.1872,4118.1,4118.0,3.21033047]
[1761609611297,1.1872,4118.1,4118.0,3.66383047]
[1761609611600,0.9696,4118.1,4118.0,4.00643047]
[1761609612403,1.1872,4118.1,4118.0,4.00643047]
[1761609612605,0.7501,4118.1,4118.0,4.00643047]
[1761609613802,0.5325,4119.0,4118.9,0.7961]
[1761609613994,0.00302704,4119.2,4119.1,0.7961]
[1761609614600,0.3147,4118.8,4118.6,0.3426]
[1761609614905,0.7501,4118.8,4118.7,0.7961]
[1761609615303,0.7501,4118.8,4118.7,0.4535]
[1761609615502,0.7501,4118.8,4118.7,0.2255]
[1761609615704,0.4354,4118.5,4118.4,0.7961]
[1761609615905,0.7501,4118.5,4118.4,0.7961]
[1761609616801,0.1334,4119.0,4118.4,0.7961]
[1761609617000,0.5688,4119.0,4118.5,0.1275]
[1761609617207,0.5688,4119.0,4118.6,0.5681]
[1761609617405,0.5688,4119.0,4118.6,0.7961]
[1761609617606,0.5688,4119.0,4118.6,0.2255]
[1761609617607,0.7501,4118.7,4118.6,0.2255]
[1761609617801,0.3147,4118.3,4118.1,3.4333]
[1761609618006,0.7501,4118.3,4118.2,0.7961]
[1761609622007,0.7501,4118.9,4118.8,0.7961]
[1761609622506,0.3147,4118.1,4118.0,0.45603047]
[1761609622705,0.00302704,4119.2,4119.1,0.7961]
[1761609622906,0.00302704,4119.2,4119.1,4.0039]
[1761609623099,0.26662704,4119.2,4119.1,0.7961]
[1761609623303,0.26662704,4119.2,4119.1,0.3426]
[1761609623508,0.26662704,4119.2,4119.1,0.5681]
[1761609623704,0.26662704,4119.2,4119.1,0.3426]
[1761609624209,0.26662704,4119.2,4119.1,0.5681]
[1761609624401,0.26662704,4119.2,4119.1,0.3426]
[1761609624806,0.00302704,4119.2,4119.1,0.7961]
[1761609625010,3.4714,4120.1,4120.0,0.6956]
[1761609625410,3.6032,4120.1,4120.0,0.4701]
[1761609625612,3.4714,4120.1,4120.0,0.6956]
[1761609625911,3.47348758,4120.1,4120.0,0.6956]
[1761609626512,3.47348758,4120.1,4120.0,0.9236]
[1761609627111,3.34168758,4120.1,4120.0,0.9236]
[1761609627311,3.47348758,4120.1,4120.0,0.9236]
[1761609630720,0.3954,4119.7,4119.6,0.3426]
[1761609631516,0.2636,4119.7,4119.6,0.5681]
[1761609631717,0.2636,4119.7,4119.6,0.7961]
[1761609635814,3.47408758,4120.1,4120.0,0.1349]
[1761609636119,3.47408758,4120.1,4120.0,0.4757]
[1761609636515,3.60618758,4120.1,4120.0,0.4757]
[1761609636717,0.3963,4119.7,4119.6,0.3408]
[1761609637322,0.3963,4119.4,4119.3,0.3408]
[1761609637619,0.3963,4119.2,4119.1,0.3408]
[1761609638511,0.83329,4119.2,4119.1,0.3408]
[1761609638819,0.70119,4119.2,4119.1,0.556]
[1761609639319,0.3963,4118.9,4118.8,0.3408]
[1761609639511,0.83332,4118.9,4118.8,0.3408]
[1761609640414,0.56915,4118.6,4118.2,3.2078]
[1761609640621,0.70125,4118.6,4118.2,3.2078]
[1761609640915,0.2642,4118.6,4118.5,0.3408]
[1761609641218,0.3963,4118.6,4118.5,0.3408]
[1761609641419,0.3963,4118.6,4118.5,0.4757]
[1761609641717,0.3963,4118.6,4118.5,0.6909]
[1761609641916,1.09256,4118.9,4118.1,0.3408]
[1761609641917,0.1321,4118.5,4118.1,0.3408]
[1761609642218,3.3399,4118.4,4118.2,0.3408]
[1761609642521,3.3399,4118.4,4118.3,0.2152]
[1761609642718,3.472,4118.4,4118.3,0.556]
[1761609643613,3.6041,4118.4,4118.3,0.3408]
[1761609644318,0.3963,4117.9,4117.8,0.58028481]
[1761609644615,3.2078,4119.7,4117.8,0.23808481]
[1761609644821,0.3311,4119.8,4119.7,0.5997]
[1761609645015,0.133,4120.0,4119.9,0.5997]
[1761609645016,0.3311,4120.0,4119.9,0.5997]
[1761609645216,0.00208758,4120.1,4120.0,0.3998]
[1761609645520,0.33318758,4120.1,4120.0,0.60215701]
[1761609645720,0.54518758,4120.1,4120.0,0.40225701]
[1761609645916,0.77098758,4120.1,4120.0,0.40225701]
[1761609647022,0.77098758,4120.1,4120.0,0.00245701]
[1761609648017,0.77098758,4120.1,4119.3,0.3998]
[1761609648018,0.5431,4119.4,4119.3,0.3998]
[1761609648721,0.3311,4119.4,4119.3,0.5997]
[1761609648924,0.4641,4120.0,4119.9,0.3998]
[1761609649221,0.00208758,4120.1,4120.0,0.1999]
[1761609649421,0.00208758,4120.1,4120.0,0.5997]
[1761609649627,0.33318758,4120.1,4120.0,0.5997]
[1761609649820,0.54518758,4120.1,4120.0,0.5997]
[1761609650021,0.54518758,4120.1,4120.0,0.3998]
[1761609650224,0.77098758,4120.1,4120.0,0.3998]
[1761609650527,0.9019,4120.0,4119.9,3.2078]
[1761609653127,0.9019,4120.0,4119.9,3.4077]
[1761609653324,0.9019,4120.0,4119.3,0.00220782]
[1761609653525,0.3311,4119.3,4118.2,0.3408]
[1761609653726,0.7689,4118.9,4118.8,0.7698]
[1761609653927,0.4378,4118.9,4118.8,0.7698]
[1761609654429,0.4378,4118.9,4118.8,0.77159891]
[1761609654830,0.7689,4118.9,4118.8,0.55779891]
[1761609655525,0.4378,4118.9,4118.8,0.77159891]
[1761609655731,0.7689,4119.3,4119.2,0.556]
[1761609656127,0.7689,4119.3,4119.2,0.7698]
[1761609658630,0.3311,4119.2,4119.0,0.2152]
[1761609658829,0.7689,4119.1,4119.0,0.556]
[1761609659224,0.7689,4119.1,4119.0,0.7698]
[1761609660225,0.7689,4119.1,4118.8,0.00179891]
[1761609660424,3.9767,4118.9,4118.8,0.00179891]
[1761609661329,0.3311,4117.4,4116.7,0.3408]
[1761609661534,0.3311,4117.4,4116.7,0.7698]
[1761609661535,0.7689,4116.8,4116.7,0.7698]
[1761609661736,3.4198,4117.4,4116.8,0.3408]
[1761609661935,3.9767,4117.4,4117.3,0.556]
[1761609662330,3.97944976,4117.4,4117.3,0.00300575]
[1761609664535,3.97944976,4117.4,4117.3,0.53460575]
[1761609666438,3.97944976,4117.4,4117.3,0.21160575]
[1761609667339,0.00274976,4117.4,4117.3,0.78220575]
[1761609668435,0.21284976,4117.4,4117.3,0.78220575]
[1761609668734,0.42454976,4117.4,4117.3,0.78220575]
[1761609668937,0.21284976,4117.4,4117.3,0.78220575]
[1761609669335,0.42454976,4117.4,4117.3,0.78220575]
[1761609669642,0.74394976,4117.4,4117.3,0.55200575]
[1761609670537,0.74394976,4117.4,4117.3,0.00300575]
[1761609671042,0.42454976,4117.4,4117.3,0.79890575]
[1761609671943,0.21284976,4117.4,4117.3,0.79890575]
[1761609672137,0.00274976,4117.4,4117.3,0.79890575]
[1761609674740,0.5311,4119.5,4118.3,0.4555]
[1761609674938,0.5311,4119.5,4119.4,0.7959]
[1761609674939,0.4218,4119.5,4119.4,0.7959]
[1761609675139,0.7412,4119.5,4119.4,0.7959]
[1761609675344,0.2101,4119.5,4119.4,0.7959]
[1761609675541,3.2078,4119.7,4119.6,0.7959]
[1761609675741,3.21082086,4119.7,4119.6,0.7959]
[1761609675946,3.42092086,4119.7,4119.6,0.7959]
[1761609677449,0.00302086,4119.7,4119.6,0.7959]
[1761609678344,0.21312086,4119.7,4119.6,0.7959]
[1761609679451,0.42482086,4119.7,4119.6,0.7959]
[1761609682454,0.21312086,4119.7,4119.6,0.7959]
[1761609684350,0.00302086,4119.7,4119.6,0.7959]
[1761609686055,0.21312086,4119.7,4119.6,0.7959]
[1761609686951,0.00302086,4119.7,4119.6,0.7959]
[1761609687458,0.4218,4119.4,4119.3,0.4555]
[1761609687858,0.42482086,4119.7,4119.6,0.4555]
[1761609688158,0.42482086,4119.7,4119.6,0.7959]
[1761609689058,0.74422086,4119.7,4119.6,0.7959]
[1761609690056,0.42482086,4119.7,4119.3,0.3404]
[1761609690260,0.7412,4119.4,4119.3,0.4555]
[1761609690760,0.7412,4119.3,4119.2,0.2253]
[1761609691762,0.3194,4118.9,4118.7,0.5334]
[1761609691965,0.7412,4118.8,4118.7,0.4555]
[1761609692162,0.7412,4118.8,4118.7,0.7636]
[1761609692358,0.7412,4118.8,4118.7,0.4555]
[1761609692765,0.7412,4118.8,4118.7,0.2253]
[1761609693161,3.3326,4119.0,4118.1,0.2253]
[1761609693162,0.1248,4118.5,4118.1,0.2253]
[1761609693365,0.7412,4118.2,4118.1,0.2253]
[1761609693866,0.7412,4118.2,4118.1,0.4555]
[1761609695470,3.2078,4118.3,4118.1,0.7874]
[1761609695669,3.2078,4118.3,4118.2,0.3319]
[1761609696268,3.2078,4118.3,4118.2,0.7687]
[1761609697569,3.9828,4118.3,4118.2,0.4368]
[1761609697867,0.5601,4117.7,4117.6,1.20586]
[1761609698067,0.3428,4117.7,4117.6,1.20586]
[1761609698369,0.3428,4117.9,4117.8,0.7687]
[1761609698771,0.2173,4118.2,4118.1,0.4368]
[1761609699269,0.5601,4118.2,4118.1,0.4368]
[1761609699470,0.775,4118.2,4118.1,0.4368]
[1761609699765,0.775,4118.2,4117.5,0.3319]
[1761609699968,3.9828,4117.8,4117.7,0.4368]
[1761609704371,0.775,4117.8,4117.7,0.4368]
[1761609704672,3.9828,4117.8,4117.7,0.4368]
[1761609705869,3.64,4117.8,4117.3,0.00300575]
[1761609706074,3.5506,4117.8,4117.7,0.3319]
[1761609706275,3.7679,4117.8,4117.7,0.7687]
[1761609706772,3.9828,4117.8,4117.7,0.4368]
[1761609709678,3.9828,4117.8,4117.7,0.2205]
[1761609711184,0.775,4117.8,4117.7,0.2205]
[1761609713780,0.775,4117.8,4117.7,1.20585]
[1761609713981,0.775,4117.8,4117.7,0.7687]
[1761609714181,0.3428,4117.8,4117.7,1.20585]
[1761609714377,0.3428,4117.9,4117.8,0.7687]
[1761609714571,0.5601,4117.9,4117.8,1.20584]
[1761609715475,0.5601,4117.9,4117.3,1.09598575]
[1761609715476,0.3428,4118.2,4117.9,0.76902]
[1761609715679,0.5601,4118.2,4118.1,0.7687]
[1761609715982,0.775,4118.2,4118.1,0.4368]
[1761609716583,3.4251,4118.3,4118.1,0.7687]
[1761609716784,0.4322,4118.2,4118.1,0.4368]
[1761609716985,3.4251,4118.8,4118.4,0.4368]
[1761609717185,0.5601,4118.7,4118.6,0.4368]
[1761609717483,0.5601,4118.7,4118.6,0.7687]
[1761609718784,0.775,4118.7,4118.6,0.4368]
[1761609719083,0.3428,4117.4,4115.5,3.3281]
[1761609719286,0.3428,4116.6,4116.5,0.4368]
[1761609719586,3.7679,4116.8,4116.5,0.4368]
[1761609719782,3.4251,4116.8,4116.5,0.4368]
[1761609719985,0.5601,4116.7,4116.5,0.43870652]
[1761609720192,0.5601,4116.6,4116.5,0.43870652]
[1761609720485,0.775,4116.6,4116.5,0.00190652]
[1761609725894,0.775,4116.6,4116.5,0.24500652]
[1761609726693,0.775,4116.6,4116.5,0.85290652]
[1761609726992,3.21054196,4116.8,4116.7,0.8683]
[1761609728188,3.85304196,4116.8,4116.7,0.8683]
[1761609729394,4.10354196,4116.8,4116.7,0.4977]
[1761609731693,3.21054196,4116.8,4116.7,0.80785]
[1761609731894,3.21054196,4116.8,4116.7,5.20355]
[1761609733393,0.00274196,4116.8,4116.7,5.20355]
[1761609734494,0.38584196,4116.8,4116.7,5.20355]
[1761609735100,0.00274196,4116.8,4116.7,5.20355]
[1761609736698,0.38584196,4116.8,4116.7,5.20355]
[1761609737398,0.00274196,4116.8,4116.7,5.20355]
[1761609738302,3.2078,4117.5,4117.4,0.8683]
[1761609738501,3.2078,4117.5,4117.4,1.30548]
[1761609738699,3.2078,4117.5,4117.1,3.898]
[1761609738700,0.3831,4117.4,4117.1,3.898]
[1761609738891,0.893,4117.2,4117.1,3.898]
[1761609739097,0.89603503,4117.2,4117.1,4.1584]
[1761609743705,0.89603503,4117.2,4117.1,0.2604]
[1761609743901,0.3831,4117.1,4116.6,4.1584]
[1761609744108,0.6425,4116.7,4116.6,4.7663]
[1761609745400,0.893,4116.7,4116.6,4.7663]
[1761609745598,0.893,4116.7,4116.6,4.3957]
[1761609746003,0.893,4116.7,4116.6,0.4977]
[1761609747207,0.893,4116.7,4116.6,0.2604]
[1761609747510,0.893,4116.7,4116.5,3.20970652]
[1761609747805,0.3831,4116.6,4116.5,3.47010652]
[1761609748006,0.893,4116.6,4116.5,3.47010652]
[1761609748308,0.893,4116.6,4116.5,0.26230652]
[1761609751906,0.893,4116.6,4116.5,0.00190652]
[1761609752108,0.6425,4116.6,4116.5,0.87020652]
[1761609752306,0.6425,4116.6,4116.5,1.30747652]
[1761609752807,0.3831,4116.9,4116.8,0.93494]
[1761609753308,0.6425,4116.9,4116.8,1.30554]
[1761609756308,0.4009,4117.1,4117.0,0.643]
[1761609756507,0.00303503,4117.2,4117.1,1.35121]
[1761609757212,0.00303503,4117.2,4117.1,5.24921]
[1761609760916,0.6696,4118.0,4117.5,0.4007]
[1761609761217,0.6696,4118.0,4117.6,0.6717]
[1761609761412,0.2749,4117.7,4117.6,0.6717]
[1761609761714,0.67879778,4117.7,4117.6,0.914]
[1761609764514,0.93959778,4117.7,4117.6,0.914]
[1761609765015,0.93959778,4117.7,4117.6,1.35116]
[1761609768518,0.91984357,4117.7,4117.6,1.35116]
[1761609771620,0.65904357,4117.7,4117.6,1.35116]
[1761609771827,0.4009,4118.3,4118.2,1.08009]
[1761609772025,3.7435,4118.6,4118.5,0.5133]
[1761609772225,0.5357,4118.4,4118.3,0.70808]
[1761609772427,3.6087,4118.6,4118.5,0.914]
[1761609772620,4.1444,4118.6,4118.5,0.914]
[1761609772925,4.14668283,4118.6,4118.5,0.914]
[1761609773423,4.14668283,4118.6,4118.5,1.35106]
[1761609773727,4.14668283,4118.6,4118.5,0.914]
[1761609775221,4.14668283,4118.6,4118.5,0.5133]
[1761609778924,0.5722,4118.5,4118.0,4.169]
[1761609779223,0.9366,4118.1,4118.0,4.169]
[1761609779428,0.9366,4118.1,4118.0,3.898]
[1761609780025,0.9366,4118.1,4118.0,4.169]
[1761609780230,4.1444,4118.1,4118.0,3.898]
[1761609781728,3.7435,4118.1,4117.0,3.4788]
[1761609782031,0.9366,4117.1,4117.0,3.91602]
[1761609782231,0.9366,4117.1,4117.0,4.55902]
[1761609783131,0.9366,4117.1,4117.0,3.4788]
[1761609783534,0.9366,4117.1,4117.0,3.91602]
[1761609785228,0.1713,4117.5,4117.0,4.52752]
[1761609785436,3.4565,4117.6,4117.5,1.30887]
[1761609785630,3.2078,4117.6,4117.5,1.30887]
[1761609785833,3.4565,4117.6,4117.5,1.30887]
[1761609786135,3.8315,4117.6,4117.5,1.30887]
[1761609786433,3.5828,4117.6,4117.5,1.30887]
[1761609786637,0.375,4117.9,4117.8,0.43714]
[1761609786936,0.6208,4117.9,4117.8,1.30934]
[1761609788642,0.375,4117.9,4117.8,1.30934]
[1761609789236,0.375,4117.9,4117.8,0.8722]
[1761609789441,0.8601,4117.9,4117.8,0.8722]
[1761609789939,0.8601,4117.9,4117.8,0.4893]
[1761609792336,0.4851,4117.9,4117.7,0.43714]
[1761609792540,0.8601,4117.8,4117.7,0.68354]
[1761609800047,0.8601,4117.8,4117.7,0.2464]
[1761609800247,3.3601,4118.0,4117.4,4.1444]
[1761609800248,1.0124,4117.5,4117.4,4.1444]
[1761609800544,4.2202,4117.5,4117.4,3.898]
[1761609802345,0.8601,4116.9,4116.8,1.30944]
[1761609803543,0.8601,4116.9,4116.8,5.20744]
[1761609803746,0.8601,4116.9,4116.8,4.3873]
[1761609804146,0.375,4116.9,4116.8,5.20744]
[1761609804847,0.6208,4116.9,4116.8,5.20744]
[1761609806448,0.8601,4116.9,4116.8,5.20744]
[1761609807549,0.375,4116.9,4116.8,5.20744]
[1761609807750,0.6208,4117.2,4117.1,0.8722]
[1761609808048,0.8601,4117.2,4117.1,0.8722]
[1761609809449,0.8601,4117.2,4117.1,0.4893]
[1761609809942,0.8601,4117.2,4116.6,4.1444]
[1761609809943,0.1523,4117.0,4116.6,4.1444]
[1761609810144,0.8601,4116.7,4116.6,4.1444]
[1761609810341,0.4851,4116.7,4116.5,0.00190652]
[1761609810545,0.6208,4115.8,4115.7,1.30955]
[1761609810751,0.6208,4116.0,4115.9,1.30954]
[1761609811252,0.6208,4116.4,4116.3,0.2464]
[1761609811649,0.8601,4116.4,4116.3,0.24850345]
[1761609813349,0.8601,4116.4,4116.3,0.00210345]
[1761609819748,0.8601,4116.4,4115.5,3.2078]
[1761609819952,0.3425,4115.2,4115.1,0.8287]
[1761609820152,0.8185,4115.2,4115.1,0.8287]
[1761609820847,0.82118344,4115.2,4115.1,0.49675169]
[1761609823556,0.82118344,4115.2,4115.1,0.23895169]
[1761609824555,0.82118344,4115.2,4115.1,0.83055169]
[1761609824758,0.00268344,4115.2,4115.1,0.83055169]
[1761609827454,0.3425,4115.8,4115.7,1.00826]
[1761609827660,0.3425,4115.8,4115.7,1.26606]
[1761609827858,0.5584,4115.8,4115.7,1.26606]
[1761609828055,0.3425,4115.8,4115.7,1.26606]
[1761609828258,0.2159,4116.0,4115.9,1.26604]
[1761609828453,0.21854528,4116.0,4115.9,1.26604]
[1761609828659,0.56104528,4116.0,4115.9,1.26604]
[1761609829260,0.8185,4115.6,4115.5,0.4949]
[1761609829561,0.8185,4115.6,4115.5,0.93228]
[1761609830059,0.8185,4115.6,4115.2,0.3338]
[1761609830060,0.8185,4115.6,4115.3,0.43739]
[1761609830252,0.8185,4115.2,4115.1,0.23895169]
[1761609830458,4.0263,4115.2,4115.1,0.23895169]
[1761609830756,4.0263,4115.2,4115.1,0.00185169]
[1761609834368,0.8185,4115.2,4115.1,0.83055169]
[1761609834665,0.8185,4115.2,4115.1,1.26797169]
[1761609835563,0.8185,4115.2,4115.1,0.93417169]
[1761609836262,0.8185,4115.2,4115.1,0.23895169]
[1761609839471,0.5584,4115.2,4115.1,1.26796169]
[1761609842266,0.8185,4115.2,4115.1,0.49675169]
[1761609842565,0.8185,4115.2,4115.1,0.00185169]
[1761609843170,0.6111,4114.5,4114.4,3.4449]
[1761609843475,0.9536,4114.5,4114.4,4.14019]
[1761609843674,0.9536,4114.5,4114.4,4.47399]
[1761609843967,0.9536,4114.5,4114.4,3.88239]
[1761609844276,0.7831,4114.8,4114.7,0.4465]
[1761609844474,0.7831,4114.8,4114.7,0.88396]
[1761609844972,0.7831,4114.8,4114.7,1.21746]
[1761609846171,0.3615,4115.0,4114.9,0.4213]
[1761609846375,0.6952,4115.0,4114.9,1.18404]
[1761609846976,0.5601,4115.0,4114.9,1.18404]
[1761609848185,0.9073,4115.0,4114.9,1.18404]
[1761609848685,0.7781,4115.0,4114.9,1.18404]
[1761609849185,0.5601,4115.0,4114.9,1.18404]
[1761609849381,0.3337,4115.0,4114.9,5.08204]
[1761609849686,3.5415,4115.2,4115.1,1.18402]
[1761609850281,3.7679,4115.2,4115.1,1.18402]
[1761609850482,3.9859,4115.2,4115.1,0.85872]
[1761609851989,3.7679,4115.2,4115.1,1.18402]
[1761609855090,3.7679,4115.2,4115.1,5.08202]
[1761609855590,3.5415,4115.2,4115.1,5.08202]
[1761609855786,0.3649403,4115.5,4115.4,0.43739]
[1761609855990,3.65484528,4116.0,4115.9,0.7466]
[1761609856690,0.44704528,4116.0,4115.9,0.7466]
[1761609857692,0.44704528,4116.0,4115.9,1.18393]
[1761609857892,3.9746,4117.0,4116.9,0.534]
[1761609858990,0.7668,4116.7,4116.6,0.534]
[1761609859993,0.7668,4115.8,4115.7,0.3253]
[1761609860691,0.7668,4115.6,4115.5,0.534]
[1761609860893,0.7668,4115.6,4115.5,0.97137]
[1761609861193,0.7668,4115.6,4115.5,1.09977]
[1761609861393,0.4444,4115.3,4115.2,0.3253]
[1761609861589,0.3224,4115.2,4115.1,3.2078]
[1761609861789,0.7668,4115.2,4115.1,3.2078]
[1761609861989,0.7668,4115.2,4115.1,3.7418]
[1761609862288,0.4444,4115.2,4115.1,3.9544]
[1761609862498,0.2264,4115.2,4115.1,3.9544]
[1761609863190,0.4444,4115.2,4115.1,3.9544]
[1761609864892,0.4444,4115.2,4115.1,3.5331]
[1761609864893,0.7668,4115.2,4115.1,3.5331]
[1761609865690,0.7668,4115.2,4115.1,3.2078]
[1761609865895,0.3224,4115.1,4114.8,0.3253]
[1761609866094,0.4444,4114.9,4114.8,0.3253]
[1761609866390,0.3224,4114.8,4114.6,3.5331]
[1761609866698,0.0599,4114.5,4114.4,0.00289886]
[1761609866896,0.8267,4114.5,4114.4,0.00289886]
[1761609867397,0.7668,4114.5,4114.4,0.00289886]
[1761609868397,0.8267,4114.5,4114.4,0.00289886]
[1761609870999,0.4444,4114.5,4114.4,0.74949886]
[1761609871600,0.3224,4115.1,4114.6,0.3253]
[1761609871795,0.2264,4114.7,4114.6,0.3253]
[1761609872101,0.4444,4114.7,4114.6,0.7466]
[1761609873802,0.1292,4114.5,4113.7,3.2078]
[1761609874005,0.3224,4113.7,4113.3,0.3787]
[1761609874301,0.8228,4113.7,4113.6,0.6168]
[1761609874606,0.8228,4113.7,4113.6,0.845]
[1761609874907,0.82504566,4113.7,4113.6,0.84754052]
[1761609875206,1.26261566,4113.7,4113.6,0.84754052]
[1761609876805,0.45844566,4113.7,4113.6,0.84754052]
[1761609877106,0.00224566,4113.7,4113.6,0.84754052]
[1761609878100,0.43748,4114.6,4114.5,0.6189]
[1761609878306,0.67748,4114.6,4114.5,0.9976]
[1761609878807,0.89368,4114.6,4114.5,0.9976]
[1761609879108,0.89576413,4114.6,4114.5,0.9976]
[1761609883414,1.26236413,4114.6,4114.5,0.6168]
[1761609884019,1.26236413,4114.6,4114.5,0.7694]
[1761609884314,0.67956413,4114.6,4114.5,0.9976]
[1761609885816,0.89576413,4114.6,4114.5,0.9976]
[1761609887920,0.00208413,4114.6,4114.5,4.64288]
[1761609888119,0.00208413,4114.6,4114.5,4.2054]
[1761609888520,0.00208413,4114.6,4114.5,4.64288]
[1761609891818,3.2078,4115.2,4115.1,0.845]
[1761609891819,3.4478,4115.2,4115.1,0.845]
[1761609892119,0.24,4115.6,4115.3,0.43739]
[1761609892324,0.24,4115.6,4115.5,0.9976]
[1761609892820,0.24252146,4115.6,4115.5,0.9976]
[1761609893720,0.45872146,4115.6,4115.5,0.9976]
[1761609894121,0.82532146,4115.6,4115.5,0.9976]
[1761609894325,0.45872146,4115.6,4115.5,0.9976]
[1761609898726,0.82532146,4115.6,4115.5,0.7694]
[1761609899026,0.43747,4114.6,4114.5,3.8267]
[1761609899326,0.67747,4114.6,4114.5,3.8267]
[1761609899826,0.67747,4114.6,4114.5,4.2054]
[1761609901226,1.26027,4114.6,4114.5,4.2054]
[1761609901425,1.26027,4114.6,4114.5,0.6168]
[1761609901726,0.8228,4114.5,4114.4,0.6168]
[1761609901923,0.4562,4114.5,4114.4,0.845]
[1761609902120,0.4562,4114.2,4114.1,0.2381]
[1761609902323,0.8228,4114.2,4114.1,0.2381]
[1761609902623,0.3666,4114.1,4113.7,0.3787]
[1761609902925,0.24,4113.8,4113.7,0.845]
[1761609904130,0.4562,4113.8,4113.7,0.845]
[1761609905130,0.7922,4113.8,4113.7,0.845]
[1761609905733,0.4562,4113.8,4113.7,0.845]
[1761609906123,0.24,4113.8,4113.7,0.845]
[1761609907528,0.7937,4113.8,4113.7,0.845]
[1761609908736,0.4694,4113.8,4113.7,0.845]
[1761609914639,0.2377,4114.1,4114.0,0.9166]
[1761609915137,0.4671,4114.1,4114.0,0.9166]
[1761609915639,0.7914,4114.1,4114.0,0.9166]
[1761609918639,0.3243,4114.0,4113.7,0.3431]
[1761609918838,0.7914,4113.8,4113.7,0.225]
[1761609919243,0.7914,4113.8,4113.7,0.5681]
[1761609920342,0.7914,4113.8,4113.7,0.3431]
[1761609920540,0.7914,4113.8,4113.6,0.00254052]
[1761609920743,0.3243,4113.7,4113.6,0.34564052]
[1761609920942,0.7914,4113.7,4113.6,0.34564052]
[1761609922139,0.7914,4113.7,4113.6,0.00254052]
[1761609922345,0.9824034,4113.7,4113.6,0.00254052]
[1761609922843,0.7914,4113.7,4113.6,0.00254052]
[1761609923043,0.7914,4113.7,4113.6,0.34564052]
[1761609924447,0.7914,4113.7,4113.6,0.00254052]
[1761609927848,8.7914,4113.7,4113.6,0.00254052]
[1761609930251,0.7914,4113.7,4113.6,0.00254052]
[1761609930451,0.3243,4113.6,4112.7,0.3431]
[1761609930751,0.7914,4112.8,4112.7,0.3431]
[1761609931050,0.7914,4112.8,4112.7,0.5681]
[1761609931550,0.7914,4112.8,4112.7,0.57108751]
[1761609931752,0.7914,4112.8,4112.7,0.34608751]
[1761609931951,0.7914,4112.8,4112.7,0.57108751]
[1761609933154,0.7914,4112.8,4112.7,0.78838751]
[1761609933354,0.4671,4112.8,4112.7,0.78838751]
[1761609935452,3.2078,4113.2,4112.7,0.44528751]
[1761609935453,3.642,4113.2,4112.7,0.44528751]
[1761609935659,0.4342,4113.2,4113.1,0.7924]
[1761609936052,3.642,4113.2,4113.1,0.7924]
[1761609936252,3.9641,4113.2,4113.1,0.5557]
[1761609937456,3.9641,4113.2,4113.1,0.7924]
[1761609938460,3.642,4113.2,4113.1,0.7924]
[1761609939259,3.9641,4113.2,4113.1,0.7924]
[1761609939956,3.9641,4113.2,4112.7,0.44065751]
[1761609939957,0.4342,4112.9,4112.8,0.3388]
[1761609940161,0.7563,4112.9,4112.8,0.7924]
[1761609940563,0.4342,4112.9,4112.8,0.7924]
[1761609940858,3.642,4113.2,4113.0,0.1361]
[1761609941159,3.9641,4113.2,4113.1,0.3388]
[1761609941458,0.4342,4112.9,4112.8,0.3388]
[1761609941657,0.7563,4112.9,4112.8,0.5557]
[1761609943661,0.4342,4112.9,4112.8,0.7924]
[1761609944261,3.4213,4113.2,4113.0,0.1361]
[1761609944761,3.642,4113.2,4113.1,0.7924]
[1761609945162,3.9641,4113.2,4113.1,0.7924]
[1761609946962,3.9641,4113.2,4113.1,0.5557]
[1761609948264,3.9641,4113.2,4113.1,0.3388]
[1761609948466,0.4342,4112.9,4112.8,0.3388]
[1761609948665,0.7563,4112.9,4112.8,0.5557]
[1761609949159,0.7563,4112.8,4112.7,0.34178751]
[1761609949360,0.7563,4112.8,4112.7,0.00298751]
[1761609949661,0.7563,4112.8,4112.7,0.55868751]
[1761609951458,0.7563,4112.8,4112.7,0.00298751]
[1761609951663,0.7563,4112.8,4112.7,0.34178751]
[1761609951864,0.7563,4112.8,4112.7,0.55868751]
[1761609953368,0.4342,4112.8,4112.7,0.79538751]
[1761609953667,0.7563,4112.8,4112.7,0.79538751]
[1761609955364,3.7434,4113.2,4112.7,0.45658751]
[1761609955570,3.7434,4113.2,4113.0,0.9285]
[1761609955571,0.4342,4113.1,4113.0,0.9285]
[1761609955970,0.7563,4113.1,4113.0,0.9285]
[1761609957563,0.7563,4113.1,4113.0,0.3388]
[1761609957764,0.4342,4112.8,4112.7,0.00298751]
[1761609957969,0.7563,4112.8,4112.7,0.34178751]
[1761609958170,0.7563,4112.8,4112.7,0.79538751]
[1761609958363,0.4342,4112.8,4112.7,0.79538751]
[1761609959472,0.7563,4112.8,4112.7,0.55868751]
[1761609959773,0.7563,4112.8,4112.7,0.00298751]
[1761609959976,0.2135,4112.8,4112.7,0.79538751]